[Event "Slovakia Open Piestany-A 2022"]
[Site "Piestany"]
[Date "2022.07.17"]
[Round "8.3"]
[White "Demchenko, Anton"]
[Black "Kozak, Antoni"]
[Result "1/2-1/2"]
[ECO "B90"]
[WhiteElo "2653"]
[BlackElo "2475"]
[Annotator "ChessBase"]
[PlyCount "245"]
[EventDate "2022.07.12"]
[EventType "swiss"]
[EventCountry "SVK"]
[SourceTitle "playchess.com"]
[Source "ChessBase"]
[SourceQuality "1"]
[TimeControl "40/5400+30:1800+30"]

1. e4 {[%emt 0:00:03]} c5 {[%emt 0:07:22]} 2. Nf3 {[%emt 0:00:14]} d6 {[%emt 0:00:04]} 3. d4 {[%emt 0:00:05]} cxd4 {[%emt 0:00:03]} 4. Nxd4 {[%emt 0:00:04]} Nf6 {[%emt 0:00:05]} 5. Nc3 {[%emt 0:00:04]} a6 {[%emt 0:00:02]} 6. a4 {[%emt 0:00:14]} e5 {[%emt 0:03:21]} 7. Nf3 {[%emt 0:00:06]} Be7 {[%emt 0:00:04]} 8. Bc4 {[%emt 0:00:52]} O-O {[%emt 0:04:05]} 9. O-O {[%emt 0:00:29]} Be6 {[%emt 0:05:11]} 10. Qe2 {[%emt 0:00:37]} Qc8 {[%emt 0:10:12]} 11. Ba2 {[%emt 0:00:24]} Nbd7 {[%emt 0:03:03]} 12. Rd1 {[%emt 0:12:02]} Qc6 {[%emt 0:10:19]} 13. a5 {[%emt 0:08:28]} Rfc8 {[%emt 0:03:04]} 14. h3 {[%emt 0:03:03]} h6 {[%emt 0:11:37]} 15. Nh2 {[%emt 0:17:36]} Bd8 {[%emt 0:07:20]} 16. Ng4 {[%emt 0:14:42]} b5 {[%emt 0:02:41]} 17. axb6 {[%emt 0:02:03]} Bxb6 {[%emt 0:00:14]} 18. Ne3 {[%emt 0:15:15]} Bxe3 {[%emt 0:09:30]} 19. Bxe3 {[%emt 0:00:06]} Qb7 {[%emt 0:03:08]} 20. Bxe6 {[%emt 0:04:37]} fxe6 {[%emt 0:00:04]} 21. Ra2 {[%emt 0:00:03]} Rc6 {[%emt 0:03:24]} 22. Rd3 {[%emt 0:01:43]} Rac8 {[%emt 0:00:43]} 23. Qd1 {[%emt 0:00:27]} Kh7 {[%emt 0:02:37]} 24. Kh2 {[%emt 0:02:39]} Qb8 {[%emt 0:00:58]} 25. g3 {[%emt 0:00:56]} Nb6 {[%emt 0:02:16]} 26. Qe2 {[%emt 0:02:34]} d5 {[%emt 0:03:12]} 27. exd5 {[%emt 0:00:44]} exd5 {[%emt 0:00:58]} 28. Bxb6 {[%emt 0:00:19]} Qxb6 {[%emt 0:00:35]} 29. Rd2 {[%emt 0:00:06]} e4 {[%emt 0:02:40]} 30. Nxd5 {[%emt 0:05:59]} Nxd5 {[%emt 0:00:03]} 31. Qxe4+ {[%emt 0:00:04]} Kh8 {[%emt 0:00:02]} 32. Qxd5 {[%emt 0:00:16]} Rxc2 {[%emt 0:00:09]} 33. b3 {[%emt 0:02:15]} R2c3 {[%emt 0:02:54]} 34. Rab2 {[%emt 0:02:27]} Rb8 {[%emt 0:02:33]} 35. b4 {[%emt 0:02:31]} Qb5 {[%emt 0:00:10]} 36. Qd6 {[%emt 0:01:23]} Rc1 {[%emt 0:00:56]} 37. Rd3 {[%emt 0:00:53]} a5 {[%emt 0:00:58]} 38. Re2 {[%emt 0:01:24]} Qxb4 {[%emt 0:01:38]} 39. Qg6 {[%emt 0:00:08]} Qb7 {[%emt 0:00:34]} 40. f3 {[%emt 0:01:31]} Rf8 {[%emt 0:01:04]} 41. Rde3 {[%emt 0:05:44]} Rc6 {[%emt 0:09:03]} 42. Qg4 {[%emt 0:02:28]} Qf7 {[%emt 0:04:42]} 43. Qa4 {[%emt 0:02:32]} Qd5 {[%emt 0:02:56]} 44. Qa3 {[%emt 0:03:23]} Rcc8 {[%emt 0:04:27]} 45. Kg2 {[%emt 0:00:59]} Qc5 {[%emt 0:02:50]} 46. Qa1 {[%emt 0:00:31]} Rcd8 {[%emt 0:02:03]} 47. Re6 {[%emt 0:01:48]} Qh5 {[%emt 0:02:50]} 48. Qc3 {[%emt 0:09:35]} Rc8 {[%emt 0:02:14]} 49. Qa3 {[%emt 0:00:18]} Qc5 {[%emt 0:00:35]} 50. Qa2 {[%emt 0:02:08]} Qb5 {[%emt 0:02:00]} 51. R6e5 {[%emt 0:03:56]} Rc5 {[%emt 0:00:25]} 52. Re7 {[%emt 0:00:32]} Qd3 {[%emt 0:00:26]} 53. R7e3 {[%emt 0:00:58]} Qd1 {[%emt 0:00:44]} 54. Re8 {[%emt 0:00:39]} Rc8 {[%emt 0:00:31]} 55. Rxf8+ {[%emt 0:01:08]} Rxf8 {[%emt 0:00:02]} 56. f4 {[%emt 0:01:04]} a4 {[%emt 0:00:45]} 57. Rd2 {[%emt 0:00:42]} Qb3 {[%emt 0:00:30]} 58. Qxb3 {[%emt 0:00:47]} axb3 {[%emt 0:00:04]} 59. Rb2 {[%emt 0:00:03]} Rb8 {[%emt 0:00:03]} 60. Kf3 {[%emt 0:00:02]} Kh7 {[%emt 0:00:42]} 61. Ke2 {[%emt 0:01:16]} Kg6 {[%emt 0:00:14]} 62. g4 {[%emt 0:00:01]} Rb4 {[%emt 0:00:34]} 63. Kd1 {[%emt 0:01:06]} h5 {[%emt 0:00:12]} 64. f5+ {[%emt 0:00:33]} Kg5 {[%emt 0:00:32]} 65. gxh5 {[%emt 0:00:29]} Kxf5 {[%emt 0:00:25]} 66. Kc1 {[%emt 0:00:10]} Rc4+ {[%emt 0:00:40]} 67. Kb1 {[%emt 0:00:17]} Rc3 {[%emt 0:00:03]} 68. Rg2 {[%emt 0:00:11]} Kf6 {[%emt 0:00:02]} 69. h4 {[%emt 0:00:14]} Rc4 {[%emt 0:00:42]} 70. Rf2+ {[%emt 0:00:44]} Ke7 {[%emt 0:00:19]} 71. Rg2 {[%emt 0:00:18]} Kf7 {[%emt 0:00:04]} 72. Rh2 {[%emt 0:00:48]} Kg8 {[%emt 0:00:44]} 73. Kb2 {[%emt 0:00:33]} Rb4 {[%emt 0:00:14]} 74. Re2 {[%emt 0:01:34]} Kh7 {[%emt 0:00:48]} 75. Re8 {[%emt 0:00:32]} Rb5 {[%emt 0:00:27]} 76. Re4 {[%emt 0:00:21]} Kh6 {[%emt 0:00:10]} 77. Rg4 {[%emt 0:00:01]} Rb7 {[%emt 0:00:16]} 78. Rg5 {[%emt 0:00:10]} Rb4 {[%emt 0:00:11]} 79. Rg6+ {[%emt 0:00:06]} Kh7 {[%emt 0:00:05]} 80. Rg5 {[%emt 0:01:00]} Rb6 {[%emt 0:00:41]} 81. Rg3 {[%emt 0:00:10]} Rb5 {[%emt 0:00:15]} 82. Rg4 {[%emt 0:00:16]} Kh8 {[%emt 0:00:33]} 83. Re4 {[%emt 0:01:22]} Kg8 {[%emt 0:00:07]} 84. Rf4 {[%emt 0:00:04]} Rb6 {[%emt 0:00:31]} 85. Rf3 {[%emt 0:00:24]} Rb4 {[%emt 0:00:19]} 86. Rf5 {[%emt 0:00:05]} Kh8 {[%emt 0:00:16]} 87. Re5 {[%emt 0:00:08]} Kh7 {[%emt 0:01:21]} 88. Rg5 {[%emt 0:00:01]} Rxh4 {[%emt 0:00:29]} 89. Kxb3 {[%emt 0:00:05]} Rd4 {[%emt 0:00:02]} 90. Kc3 {[%emt 0:00:54]} Rd7 {[%emt 0:00:10]} 91. Ra5 {[%emt 0:01:25]} Kh6 {[%emt 0:00:05]} 92. Rb5 {[%emt 0:00:38]} Rd1 {[%emt 0:00:08]} 93. Rb7 {[%emt 0:00:12]} Rd5 {[%emt 0:00:36]} 94. Re7 {[%emt 0:00:32]} Rxh5 {[%emt 0:00:22]} 95. Re1 {[%emt 0:01:11]} Rd5 {[%emt 0:00:35]} 96. Kc4 {[%emt 0:00:04]} Rd2 {[%emt 0:01:52]} 97. Rh1+ {[%emt 0:00:18]} Kg6 {[%emt 0:00:05]} 98. Rg1+ {[%emt 0:00:07]} Kf6 {[%emt 0:00:05]} 99. Rf1+ {[%emt 0:00:06]} Ke5 {[%emt 0:00:07]} 100. Rg1 {[%emt 0:00:49]} Rd7 {[%emt 0:02:55]} 101. Re1+ {[%emt 0:00:31]} Kf4 {[%emt 0:00:04]} 102. Rf1+ {[%emt 0:00:04]} Ke4 {[%emt 0:00:20]} 103. Re1+ {[%emt 0:00:05]} Kf3 {[%emt 0:00:30]} 104. Rg1 {[%emt 0:00:07]} Kf4 {[%emt 0:00:49]} 105. Rf1+ {[%emt 0:00:04]} Ke5 {[%emt 0:00:06]} 106. Re1+ {[%emt 0:00:13]} Kf6 {[%emt 0:00:03]} 107. Rf1+ {[%emt 0:00:04]} Ke7 {[%emt 0:00:12]} 108. Re1+ {[%emt 0:00:39]} Kf7 {[%emt 0:00:05]} 109. Rf1+ {[%emt 0:00:06]} Kg8 {[%emt 0:00:03]} 110. Rg1 {[%emt 0:00:07]} Rd2 {[%emt 0:00:11]} 111. Kc3 {[%emt 0:01:05]} Rd6 {[%emt 0:00:06]} 112. Kc4 {[%emt 0:00:08]} Kf7 {[%emt 0:00:38]} 113. Rf1+ {[%emt 0:00:14]} Ke7 {[%emt 0:00:28]} 114. Rg1 {[%emt 0:01:09]} Kf7 {[%emt 0:05:17]} 115. Rf1+ {[%emt 0:01:22]} Rf6 {[%emt 0:00:05]} 116. Rg1 {[%emt 0:00:03]} Rf4+ {[%emt 0:00:26]} 117. Kd3 {[%emt 0:00:23]} Kf6 {[%emt 0:00:03]} 118. Ke3 {[%emt 0:01:02]} g5 {[%emt 0:00:04]} 119. Rg3 {[%emt 0:00:00]} Kg6 {[%emt 0:01:10]} 120. Rf3 {[%emt 0:00:00]} Kh7 {[%emt 0:00:22]} 121. Rxf4 {[%emt 0:00:23]} gxf4+ {[%emt 0:00:03]} 122. Kf3 {[%emt 0:00:06]} Kh8 {[%emt 0:00:03]} 123. Kxf4 {[%emt 0:00:04]} 1/2-1/2

[Event "Slovakia Open Piestany-A 2022"]
[Site "Piestany"]
[Date "2022.07.17"]
[Round "8.4"]
[White "Neugebauer, Martin"]
[Black "Lewtak, Damian"]
[Result "1-0"]
[ECO "B90"]
[WhiteElo "2528"]
[BlackElo "2397"]
[Annotator "ChessBase"]
[PlyCount "79"]
[EventDate "2022.07.12"]
[EventType "swiss"]
[EventCountry "SVK"]
[SourceTitle "playchess.com"]
[Source "ChessBase"]
[SourceQuality "1"]
[TimeControl "40/5400+30:1800+30"]

1. e4 {[%emt 0:00:17]} c5 {[%emt 0:00:05]} 2. Nf3 {[%emt 0:00:18]} d6 {[%emt 0:00:07]} 3. d4 {[%emt 0:00:23]} cxd4 {[%emt 0:00:06]} 4. Nxd4 {[%emt 0:00:05]} Nf6 {[%emt 0:00:55]} 5. Nc3 {[%emt 0:00:18]} a6 {[%emt 0:00:04]} 6. Be3 {[%emt 0:02:19]} Ng4 {[%emt 0:03:25]} 7. Bc1 {[%emt 0:00:26]} Nf6 {[%emt 0:00:05]} 8. f3 {[%emt 0:00:26]} e5 {[%emt 0:00:17]} 9. Nb3 {[%emt 0:00:10]} Be6 {[%emt 0:00:32]} 10. Be3 {[%emt 0:00:25]} Nbd7 {[%emt 0:00:47]} 11. g4 {[%emt 0:13:53]} Be7 {[%emt 0:03:00]} 12. Qd2 {[%emt 0:02:01]} Qc7 {[%emt 0:02:24]} 13. g5 {[%emt 0:02:11]} Nh5 {[%emt 0:00:14]} 14. O-O-O {[%emt 0:00:14]} Nb6 {[%emt 0:04:33]} 15. Kb1 {[%emt 0:05:10]} Rc8 {[%emt 0:07:15]} 16. Qf2 {[%emt 0:18:20]} Nc4 {[%emt 0:01:46]} 17. Bxc4 {[%emt 0:01:08]} Bxc4 {[%emt 0:01:45]} 18. Nd2 {[%emt 0:06:26]} Be6 {[%emt 0:03:26]} 19. Nf1 {[%emt 0:01:41]} f6 {[%emt 0:06:22]} 20. Ng3 {[%emt 0:06:27]} Nxg3 {[%emt 0:00:46]} 21. hxg3 {[%emt 0:01:07]} fxg5 {[%emt 0:00:19]} 22. Qh2 {[%emt 0:03:08]} h6 {[%emt 0:03:47]} 23. f4 {[%emt 0:02:48]} gxf4 {[%emt 0:02:31]} 24. gxf4 {[%emt 0:00:25]} Bf6 {[%emt 0:02:42]} 25. f5 {[%emt 0:03:45]} Bf7 {[%emt 0:01:38]} 26. Rd2 {[%emt 0:02:14]} Qe7 {[%emt 0:02:46]} 27. Nd5 {[%emt 0:05:54]} Bxd5 {[%emt 0:00:43]} 28. Rxd5 {[%emt 0:00:05]} h5 {[%emt 0:01:36]} 29. Rhd1 {[%emt 0:03:19]} Rc6 {[%emt 0:00:47]} 30. Bd2 {[%emt 0:00:53]} Qf8 {[%emt 0:05:35]} 31. Bb4 {[%emt 0:01:12]} Be7 {[%emt 0:00:12]} 32. c4 {[%emt 0:07:05]} b6 {[%emt 0:03:32]} 33. Qc2 {[%emt 0:00:54]} Kf7 {[%emt 0:01:21]} 34. Qb3 {[%emt 0:00:46]} Kf6 {[%emt 0:02:50]} 35. c5 {[%emt 0:04:51]} bxc5 {[%emt 0:02:01]} 36. Bd2 {[%emt 0:04:49]} h4 {[%emt 0:08:25]} 37. Rg1 {[%emt 0:00:29]} c4 {[%emt 0:03:32]} 38. Qb7 {[%emt 0:00:21]} Rc8 {[%emt 0:00:38]} 39. Bg5+ {[%emt 0:00:18]} Kf7 {[%emt 0:00:40]} 40. Bxe7 {[%emt 0:00:08]} 1-0

[Event "Slovakia Open Piestany-A 2022"]
[Site "Piestany"]
[Date "2022.07.17"]
[Round "8.5"]
[White "Moroni, Luca Jr"]
[Black "Moksh Amit Doshi"]
[Result "0-1"]
[ECO "A28"]
[WhiteElo "2584"]
[BlackElo "2409"]
[Annotator "ChessBase"]
[PlyCount "94"]
[EventDate "2022.07.12"]
[EventType "swiss"]
[EventCountry "SVK"]
[SourceTitle "playchess.com"]
[Source "ChessBase"]
[SourceQuality "1"]
[TimeControl "40/5400+30:1800+30"]

1. c4 {[%emt 0:03:49]} Nf6 {[%emt 0:03:32]} 2. Nc3 {[%emt 0:04:42]} e5 {[%emt 0:00:21]} 3. e3 {[%emt 0:00:05]} Nc6 {[%emt 0:01:08]} 4. Qb3 {[%emt 0:00:04]} Bb4 {[%emt 0:04:39]} 5. Nf3 {[%emt 0:05:30]} a5 {[%emt 0:06:02]} 6. Be2 {[%emt 0:02:31]} O-O {[%emt 0:01:59]} 7. O-O {[%emt 0:01:53]} Re8 {[%emt 0:01:46]} 8. d3 {[%emt 0:03:25]} d6 {[%emt 0:05:26]} 9. Bd2 {[%emt 0:05:31]} h6 {[%emt 0:05:41]} 10. Rac1 {[%emt 0:06:33]} Be6 {[%emt 0:09:32]} 11. a3 {[%emt 0:05:48]} Bc5 {[%emt 0:00:42]} 12. Na4 {[%emt 0:00:27]} Qd7 {[%emt 0:02:48]} 13. Nxc5 {[%emt 0:12:33]} dxc5 {[%emt 0:00:07]} 14. Bc3 {[%emt 0:00:03]} Bf5 {[%emt 0:00:36]} 15. Rcd1 {[%emt 0:03:49]} Rad8 {[%emt 0:00:45]} 16. Ne1 {[%emt 0:03:05]} b6 {[%emt 0:02:47]} 17. Qc2 {[%emt 0:01:30]} Qe6 {[%emt 0:08:53]} 18. b3 {[%emt 0:05:12]} Nd4 {[%emt 0:02:36]} 19. Qb2 {[%emt 0:04:13]} Nxe2+ {[%emt 0:01:06]} 20. Qxe2 {[%emt 0:00:02]} e4 {[%emt 0:00:27]} 21. Bxf6 {[%emt 0:10:00]} Qxf6 {[%emt 0:01:24]} 22. dxe4 {[%emt 0:01:14]} Bxe4 {[%emt 0:01:06]} 23. f3 {[%emt 0:02:09]} Rxd1 {[%emt 0:01:35]} 24. Qxd1 {[%emt 0:00:09]} Bc6 {[%emt 0:00:07]} 25. Qc1 {[%emt 0:01:12]} Qe5 {[%emt 0:02:09]} 26. e4 {[%emt 0:01:29]} Qd4+ {[%emt 0:00:27]} 27. Rf2 {[%emt 0:02:41]} a4 {[%emt 0:02:42]} 28. Qb2 {[%emt 0:06:07]} Qd1 {[%emt 0:06:03]} 29. Kf1 {[%emt 0:00:15]} Qxb3 {[%emt 0:07:27]} 30. Qc1 {[%emt 0:00:14]} Rd8 {[%emt 0:01:56]} 31. Rc2 {[%emt 0:00:20]} Rd4 {[%emt 0:02:23]} 32. Kf2 {[%emt 0:00:57]} Bd7 {[%emt 0:06:21]} 33. Rc3 {[%emt 0:01:12]} Rd1 {[%emt 0:01:01]} 34. Qe3 {[%emt 0:01:29]} Qb2+ {[%emt 0:00:07]} 35. Kg3 {[%emt 0:01:03]} Be6 {[%emt 0:00:52]} 36. f4 {[%emt 0:00:17]} Rd4 {[%emt 0:02:02]} 37. f5 {[%emt 0:01:28]} Rxe4 {[%emt 0:00:55]} 38. Qxe4 {[%emt 0:02:11]} Qxc3+ {[%emt 0:00:05]} 39. Nf3 {[%emt 0:00:12]} Bxc4 {[%emt 0:01:53]} 40. f6 {[%emt 0:00:51]} Qd3 {[%emt 0:07:17]} 41. Qe8+ {[%emt 0:07:35]} Kh7 {[%emt 0:00:07]} 42. fxg7 {[%emt 0:00:08]} Qd6+ {[%emt 0:01:20]} 43. Kf2 {[%emt 0:00:23]} Kxg7 {[%emt 0:00:07]} 44. Qxa4 {[%emt 0:00:09]} Bd5 {[%emt 0:00:42]} 45. Nh4 {[%emt 0:01:27]} Qf6+ {[%emt 0:00:26]} 46. Kg3 {[%emt 0:00:32]} Qe5+ {[%emt 0:00:17]} 47. Kf2 {[%emt 0:00:24]} c4 {[%emt 0:00:35]} 0-1

[Event "Slovakia Open Piestany-A 2022"]
[Site "Piestany"]
[Date "2022.07.17"]
[Round "8.6"]
[White "Pacher, Milan"]
[Black "Krasenkow, Michal"]
[Result "1/2-1/2"]
[ECO "A41"]
[WhiteElo "2399"]
[BlackElo "2569"]
[Annotator "ChessBase"]
[PlyCount "117"]
[EventDate "2022.07.12"]
[EventType "swiss"]
[EventCountry "SVK"]
[SourceTitle "playchess.com"]
[Source "ChessBase"]
[SourceQuality "1"]
[TimeControl "40/5400+30:1800+30"]

1. d4 {[%emt 0:09:50]} g6 {[%emt 0:00:17]} 2. c4 {[%emt 0:00:07]} d6 {[%emt 0:00:53]} 3. Nc3 {[%emt 0:00:11]} e5 {[%emt 0:00:42]} 4. Nf3 {[%emt 0:00:39]} Bg7 {[%emt 0:00:49]} 5. dxe5 {[%emt 0:13:19]} dxe5 {[%emt 0:00:28]} 6. Qxd8+ {[%emt 0:00:06]} Kxd8 {[%emt 0:00:03]} 7. Ng5 {[%emt 0:00:06]} Nh6 {[%emt 0:01:07]} 8. b3 {[%emt 0:00:17]} f6 {[%emt 0:07:11]} 9. Nge4 {[%emt 0:00:09]} Nf7 {[%emt 0:01:09]} 10. Ba3 {[%emt 0:23:56]} Bf5 {[%emt 0:07:28]} 11. O-O-O+ {[%emt 0:01:01]} Nd7 {[%emt 0:00:17]} 12. Nc5 {[%emt 0:11:52]} Kc8 {[%emt 0:01:27]} 13. e4 {[%emt 0:00:27]} Nxc5 {[%emt 0:01:24]} 14. exf5 {[%emt 0:00:09]} Bf8 {[%emt 0:00:43]} 15. Kb2 {[%emt 0:04:16]} gxf5 {[%emt 0:01:05]} 16. g3 {[%emt 0:00:25]} c6 {[%emt 0:10:30]} 17. Bh3 {[%emt 0:00:12]} Nh6 {[%emt 0:00:29]} 18. Rd2 {[%emt 0:01:51]} Kc7 {[%emt 0:01:12]} 19. Rhd1 {[%emt 0:01:25]} Re8 {[%emt 0:01:10]} 20. f3 {[%emt 0:03:47]} e4 {[%emt 0:02:55]} 21. fxe4 {[%emt 0:08:41]} fxe4 {[%emt 0:00:15]} 22. Bxc5 {[%emt 0:01:27]} Bxc5 {[%emt 0:00:23]} 23. Rd7+ {[%emt 0:00:06]} Kb8 {[%emt 0:00:06]} 24. Rf1 {[%emt 0:00:26]} e3 {[%emt 0:05:29]} 25. Kc2 {[%emt 0:00:55]} f5 {[%emt 0:01:02]} 26. Ne2 {[%emt 0:01:03]} a5 {[%emt 0:07:59]} 27. Nf4 {[%emt 0:07:01]} Bb4 {[%emt 0:10:22]} 28. Kd1 {[%emt 0:01:45]} Ng4 {[%emt 0:17:56]} 29. Bxg4 {[%emt 0:01:12]} fxg4 {[%emt 0:00:02]} 30. Ke2 {[%emt 0:00:06]} Kc8 {[%emt 0:02:17]} 31. Rg7 {[%emt 0:02:14]} h5 {[%emt 0:00:39]} 32. Nd3 {[%emt 0:03:04]} Bc3 {[%emt 0:00:19]} 33. Rg5 {[%emt 0:01:09]} h4 {[%emt 0:00:27]} 34. Rxg4 {[%emt 0:00:03]} hxg3 {[%emt 0:00:12]} 35. h4 {[%emt 0:00:03]} Rhg8 {[%emt 0:05:40]} 36. Rxg8 {[%emt 0:01:10]} Rxg8 {[%emt 0:00:31]} 37. Kxe3 {[%emt 0:00:21]} g2 {[%emt 0:00:00]} 38. Rg1 {[%emt 0:00:04]} Rg3+ {[%emt 0:00:00]} 39. Ke4 {[%emt 0:00:06]} Bd2 {[%emt 0:00:00]} 40. Nf4 {[%emt 0:01:43]} Rg4 {[%emt 0:00:09]} 41. Rxg2 {[%emt 0:30:05]} Rxf4+ {[%emt 0:35:26]} 42. Ke5 {[%emt 0:00:02]} Bc1 {[%emt 0:00:32]} 43. Rg1 {[%emt 0:00:12]} Rxh4 {[%emt 0:00:07]} 44. Rxc1 {[%emt 0:00:04]} Rh2 {[%emt 0:00:02]} 45. Ra1 {[%emt 0:03:42]} Kc7 {[%emt 0:02:01]} 46. Kd4 {[%emt 0:00:05]} Kb6 {[%emt 0:01:09]} 47. a3 {[%emt 0:00:48]} Rh3 {[%emt 0:00:12]} 48. Rb1 {[%emt 0:01:11]} Ka6 {[%emt 0:00:23]} 49. Kc5 {[%emt 0:00:36]} Rd3 {[%emt 0:02:08]} 50. Rb2 {[%emt 0:00:46]} Rh3 {[%emt 0:02:16]} 51. Rb1 {[%emt 0:00:06]} Rh2 {[%emt 0:00:28]} 52. b4 {[%emt 0:00:44]} Rh5+ {[%emt 0:00:08]} 53. Kd4 {[%emt 0:00:03]} a4 {[%emt 0:01:45]} 54. Re1 {[%emt 0:00:32]} Rh2 {[%emt 0:01:55]} 55. Re8 {[%emt 0:01:42]} Ka7 {[%emt 0:00:21]} 56. Re5 {[%emt 0:00:13]} b6 {[%emt 0:00:14]} 57. b5 {[%emt 0:00:42]} cxb5 {[%emt 0:00:51]} 58. cxb5 {[%emt 0:00:02]} Rh3 {[%emt 0:00:47]} 59. Kd5 {[%emt 0:00:35]} 1/2-1/2

[Event "Slovakia Open Piestany-A 2022"]
[Site "Piestany"]
[Date "2022.07.17"]
[Round "8.7"]
[White "Czerw, Dawid"]
[Black "Gretarsson, Helgi Ass"]
[Result "1/2-1/2"]
[ECO "C75"]
[WhiteElo "2391"]
[BlackElo "2472"]
[Annotator "ChessBase"]
[PlyCount "25"]
[EventDate "2022.07.12"]
[EventType "swiss"]
[EventCountry "SVK"]
[SourceTitle "playchess.com"]
[Source "ChessBase"]
[SourceQuality "1"]
[TimeControl "40/5400+30:1800+30"]

1. e4 {[%emt 0:00:03]} e5 {[%emt 0:00:06]} 2. Nf3 {[%emt 0:00:05]} Nc6 {[%emt 0:00:04]} 3. Bb5 {[%emt 0:00:05]} a6 {[%emt 0:00:05]} 4. Ba4 {[%emt 0:00:04]} Nge7 {[%emt 0:00:06]} 5. c3 {[%emt 0:00:52]} d6 {[%emt 0:08:23]} 6. d4 {[%emt 0:05:34]} Bd7 {[%emt 0:00:06]} 7. Be3 {[%emt 0:03:17]} h6 {[%emt 0:00:33]} 8. Nbd2 {[%emt 0:02:07]} g6 {[%emt 0:11:34]} 9. dxe5 {[%emt 0:03:07]} dxe5 {[%emt 0:02:40]} 10. Bc2 {[%emt 0:00:50]} Be6 {[%emt 0:01:44]} 11. Bb3 {[%emt 0:02:57]} Qd7 {[%emt 0:07:10]} 12. Bxe6 {[%emt 0:00:25]} Qxe6 {[%emt 0:00:05]} 13. Qb3 {[%emt 0:00:10]} 1/2-1/2

[Event "Slovakia Open Piestany-A 2022"]
[Site "Piestany"]
[Date "2022.07.17"]
[Round "8.8"]
[White "Favaloro, Andrea"]
[Black "Haring, Filip"]
[Result "0-1"]
[ECO "A04"]
[WhiteElo "2361"]
[BlackElo "2451"]
[Annotator "ChessBase"]
[PlyCount "74"]
[EventDate "2022.07.12"]
[EventType "swiss"]
[EventCountry "SVK"]
[SourceTitle "playchess.com"]
[Source "ChessBase"]
[SourceQuality "1"]
[TimeControl "40/5400+30:1800+30"]

1. Nf3 {[%emt 0:01:06]} f5 {[%emt 0:00:16]} 2. d3 {[%emt 0:00:19]} d6 {[%emt 0:00:09]} 3. e4 {[%emt 0:00:17]} e5 {[%emt 0:00:08]} 4. Nc3 {[%emt 0:00:12]} c5 {[%emt 0:00:13]} 5. g3 {[%emt 0:00:16]} Nc6 {[%emt 0:01:00]} 6. Bg2 {[%emt 0:00:18]} Be7 {[%emt 0:04:57]} 7. O-O {[%emt 0:00:19]} Nf6 {[%emt 0:08:16]} 8. Nh4 {[%emt 0:00:13]} fxe4 {[%emt 0:09:53]} 9. dxe4 {[%emt 0:00:09]} O-O {[%emt 0:01:22]} 10. Nf5 {[%emt 0:01:16]} Nd4 {[%emt 0:11:04]} 11. Qd3 {[%emt 0:00:19]} h6 {[%emt 0:09:24]} 12. f4 {[%emt 0:04:42]} Rb8 {[%emt 0:02:12]} 13. a4 {[%emt 0:07:42]} Be6 {[%emt 0:03:27]} 14. h3 {[%emt 0:09:32]} Bf7 {[%emt 0:11:26]} 15. g4 {[%emt 0:03:59]} Nxf5 {[%emt 0:05:10]} 16. exf5 {[%emt 0:00:39]} e4 {[%emt 0:02:07]} 17. Nxe4 {[%emt 0:02:22]} Nxe4 {[%emt 0:00:08]} 18. Bxe4 {[%emt 0:01:45]} d5 {[%emt 0:00:04]} 19. Bg2 {[%emt 0:00:23]} c4 {[%emt 0:00:15]} 20. Qg3 {[%emt 0:02:14]} Bh4 {[%emt 0:00:16]} 21. Qf3 {[%emt 0:00:43]} d4 {[%emt 0:00:40]} 22. c3 {[%emt 0:05:48]} Re8 {[%emt 0:04:17]} 23. Rd1 {[%emt 0:04:40]} d3 {[%emt 0:06:58]} 24. Be3 {[%emt 0:00:28]} Qa5 {[%emt 0:03:36]} 25. g5 {[%emt 0:06:14]} Qxf5 {[%emt 0:02:05]} 26. Bxa7 {[%emt 0:00:14]} Rbd8 {[%emt 0:01:14]} 27. Qg4 {[%emt 0:16:50]} Qxg4 {[%emt 0:01:38]} 28. hxg4 {[%emt 0:00:05]} hxg5 {[%emt 0:01:52]} 29. Bd4 {[%emt 0:01:24]} Rd7 {[%emt 0:03:48]} 30. fxg5 {[%emt 0:06:37]} Re2 {[%emt 0:00:48]} 31. Rab1 {[%emt 0:01:14]} Bd5 {[%emt 0:02:56]} 32. Bxd5+ {[%emt 0:24:11]} Rxd5 {[%emt 0:04:51]} 33. b3 {[%emt 0:00:30]} Rxg5 {[%emt 0:00:30]} 34. bxc4 {[%emt 0:00:30]} Rxg4+ {[%emt 0:00:30]} 35. Kh1 {[%emt 0:00:30]} d2 {[%emt 0:00:30]} 36. c5 {[%emt 0:00:30]} Bg5 {[%emt 0:00:30]} 37. a5 {[%emt 0:00:30]} Bf4 {[%emt 0:00:30]} 0-1

[Event "Slovakia Open Piestany-A 2022"]
[Site "Piestany"]
[Date "2022.07.17"]
[Round "8.9"]
[White "Sahidi, Samir"]
[Black "Marek, Matyas"]
[Result "1-0"]
[ECO "C42"]
[WhiteElo "2462"]
[BlackElo "2354"]
[Annotator "ChessBase"]
[PlyCount "91"]
[EventDate "2022.07.12"]
[EventType "swiss"]
[EventCountry "SVK"]
[SourceTitle "playchess.com"]
[Source "ChessBase"]
[SourceQuality "1"]
[TimeControl "40/5400+30:1800+30"]

1. e4 {[%emt 0:00:26]} e5 {[%emt 0:00:49]} 2. Nf3 {[%emt 0:00:15]} Nf6 {[%emt 0:00:04]} 3. Nc3 {[%emt 0:01:07]} Bb4 {[%emt 0:00:03]} 4. Nxe5 {[%emt 0:03:48]} O-O {[%emt 0:00:05]} 5. Nd3 {[%emt 0:02:41]} Bxc3 {[%emt 0:00:09]} 6. dxc3 {[%emt 0:00:11]} Nxe4 {[%emt 0:00:04]} 7. Be2 {[%emt 0:03:45]} d5 {[%emt 0:00:13]} 8. O-O {[%emt 0:02:30]} c6 {[%emt 0:00:34]} 9. Be3 {[%emt 0:03:41]} Re8 {[%emt 0:02:21]} 10. Re1 {[%emt 0:03:39]} Nd7 {[%emt 0:01:45]} 11. Bf1 {[%emt 0:01:37]} Nf8 {[%emt 0:05:43]} 12. a4 {[%emt 0:03:01]} a5 {[%emt 0:02:56]} 13. Qh5 {[%emt 0:06:33]} b6 {[%emt 0:19:31]} 14. f3 {[%emt 0:03:54]} Nf6 {[%emt 0:03:25]} 15. Qh4 {[%emt 0:00:49]} Ne6 {[%emt 0:01:01]} 16. c4 {[%emt 0:10:58]} d4 {[%emt 0:03:17]} 17. Bd2 {[%emt 0:00:59]} c5 {[%emt 0:00:40]} 18. Ne5 {[%emt 0:04:26]} Nd7 {[%emt 0:04:25]} 19. Qe4 {[%emt 0:05:05]} Ba6 {[%emt 0:06:08]} 20. Bd3 {[%emt 0:01:28]} Nef8 {[%emt 0:12:36]} 21. f4 {[%emt 0:02:43]} Nf6 {[%emt 0:06:29]} 22. Qf3 {[%emt 0:01:06]} Qc7 {[%emt 0:00:08]} 23. Re2 {[%emt 0:02:10]} Bb7 {[%emt 0:01:40]} 24. Qh3 {[%emt 0:00:46]} Re7 {[%emt 0:01:23]} 25. Rae1 {[%emt 0:01:22]} Rae8 {[%emt 0:00:16]} 26. g4 {[%emt 0:01:51]} N6d7 {[%emt 0:03:17]} 27. Qg3 {[%emt 0:02:11]} Nxe5 {[%emt 0:02:24]} 28. Rxe5 {[%emt 0:02:31]} Rxe5 {[%emt 0:00:32]} 29. fxe5 {[%emt 0:00:36]} Ng6 {[%emt 0:01:33]} 30. Bf4 {[%emt 0:03:55]} Qc6 {[%emt 0:05:24]} 31. b3 {[%emt 0:04:49]} Nxf4 {[%emt 0:06:15]} 32. Be4 {[%emt 0:00:05]} Qxe4 {[%emt 0:03:04]} 33. Rxe4 {[%emt 0:00:27]} Bxe4 {[%emt 0:00:04]} 34. Qxf4 {[%emt 0:00:08]} Bxc2 {[%emt 0:00:04]} 35. e6 {[%emt 0:00:42]} fxe6 {[%emt 0:00:07]} 36. Qd6 {[%emt 0:00:19]} e5 {[%emt 0:05:05]} 37. Qxb6 {[%emt 0:02:42]} e4 {[%emt 0:01:05]} 38. Qc6 {[%emt 0:00:51]} Rd8 {[%emt 0:03:08]} 39. Qxc5 {[%emt 0:03:55]} d3 {[%emt 0:01:07]} 40. Qe7 {[%emt 0:02:30]} Rb8 {[%emt 0:01:04]} 41. Qxe4 {[%emt 0:31:05]} h6 {[%emt 0:05:15]} 42. Qd5+ {[%emt 0:00:00]} Kh8 {[%emt 0:01:58]} 43. c5 {[%emt 0:00:00]} Rxb3 {[%emt 0:01:28]} 44. c6 {[%emt 0:00:00]} Rc3 {[%emt 0:02:22]} 45. c7 {[%emt 0:00:00]} Bb3 {[%emt 0:03:06]} 46. Qxb3 {[%emt 0:00:00]} 1-0